fUSD/lending_fUSD_20240216
["ID","MTS","AMOUNT","RATE_DAILY","PERIOD"]
[314257704,1708119170966,-562.06,0.00053424,60]
[314257705,1708119170977,-589.85,0.00053424,60]
[314257706,1708119170986,-1083.11,0.00053424,60]
[314257707,1708119170996,-618.59,0.00053424,60]
[314257708,1708119171007,-2574.8,0.00053424,60]
[314257709,1708119171017,-500.0,0.00053424,60]
[314257710,1708119171027,-890.17,0.00053424,60]
[314257711,1708119171036,-1244.45,0.00053424,60]
[314257712,1708119171046,-500.0,0.00053424,60]
[314257713,1708119171055,-588.9,0.00053424,60]
[314257714,1708119171065,-1983.03,0.00053424,60]
[314257715,1708119171074,-500.0,0.00053424,60]
[314257716,1708119171084,-1068.84,0.00053424,60]
[314257717,1708119171100,-742.37,0.00053424,60]
[314257718,1708119171110,-803.55,0.00053424,60]
[314257719,1708119171119,-4400.67,0.00053424,60]
[314257720,1708119171129,-821.93,0.00053424,60]
[314257721,1708119171139,-538.03,0.00053424,60]
[314257722,1708119171149,-500.0,0.00053424,60]
[314257723,1708119171159,-500.0,0.00053424,60]
[314257724,1708119171169,-3625.09,0.00053424,60]
[314257725,1708119171178,-500.0,0.00053424,60]
[314257726,1708119171188,-964.44,0.00053424,60]
[314257727,1708119171197,-2046.77,0.00053424,60]
[314257728,1708119171207,-1492.92,0.00053424,60]
[314257729,1708119171216,-378.7,0.00053424,60]
[314257730,1708119171226,-802.5,0.00053424,60]
[314257731,1708119171236,-610.16,0.00053424,60]
[314257732,1708119171246,-1066.34,0.00053424,60]
[314257733,1708119171256,-500.0,0.00053424,60]
[314257734,1708119171266,-797.01,0.00053424,60]
[314257735,1708119171275,-3199.37,0.00053424,60]
[314257736,1708119171285,-729.2,0.00053424,60]
[314257737,1708119171294,-420.17,0.00053424,60]
[314257738,1708119171303,-500.0,0.00053424,60]
[314257739,1708119171312,-24352.15,0.00053424,60]
[314257740,1708119171321,-638.98,0.00053424,60]
[314257741,1708119171331,-1397.78,0.00053424,60]
[314257742,1708119171340,-552.04341734,0.00053424,60]
[314257743,1708119171349,-2225.09,0.00053424,60]
[314257744,1708119171358,-500.0,0.00053424,60]
[314257745,1708119171367,-663.32,0.00053424,60]
[314257746,1708119171377,-559.03,0.00053424,60]
[314257747,1708119171386,-3059.93,0.00053424,60]
[314257748,1708119171395,-3189.76,0.00053424,60]
[314257749,1708119171405,-2572.92,0.00053424,60]
[314257750,1708119171414,-1075.21,0.00053424,60]
[314257751,1708119171424,-500.0,0.00053424,60]
[314257752,1708119171434,-500.0,0.00053424,60]
[314257753,1708119171443,-500.0,0.00053424,60]
[314257754,1708119171453,-4525.95,0.00053424,60]
[314257755,1708119171463,-648.82,0.00053424,60]
[314257756,1708119171473,-5354.43,0.00053424,60]
[314257757,1708119171482,-703.45,0.00053424,60]
[314257758,1708119171492,-871.55,0.00053424,60]
[314257759,1708119171502,-1211.83,0.00053424,60]
[314257760,1708119171511,-609.42,0.00053424,60]
[314257761,1708119171522,-1231.04,0.00053424,60]
[314257762,1708119171531,-737.52,0.00053424,60]
[314257763,1708119171540,-591.52,0.00053424,60]
[314257764,1708119171551,-719.76,0.00053424,60]
[314257765,1708119171560,-2765.99,0.00053424,60]
[314257766,1708119171569,-500.0,0.00053424,60]
[314257767,1708119171579,-500.0,0.00053424,60]
[314257768,1708119171589,-1575.91,0.00053424,60]
[314257769,1708119171599,-500.0,0.00053424,60]
[314257770,1708119171609,-868.38,0.00053424,60]
[314257771,1708119171618,-2411.87,0.00053424,60]
[314257772,1708119171627,-9546.8,0.00053424,60]
[314257773,1708119171637,-606.97,0.00053424,60]
[314257774,1708119171646,-500.0,0.00053424,60]
[314257775,1708119171656,-570.56,0.00053424,60]
[314257776,1708119171665,-500.0,0.00053424,60]
[314257777,1708119171675,-1028.79,0.00053424,60]
[314257778,1708119171684,-500.0,0.00053424,60]
[314257779,1708119171693,-1081.67,0.00053424,60]
[314257780,1708119171702,-500.0,0.00053424,60]
[314257781,1708119171711,-500.0,0.00053424,60]
[314257782,1708119171720,-8340.13,0.00053424,60]
[314257783,1708119171729,-6395.6,0.00053424,14]
[314257784,1708119171738,-500.0,0.00053424,60]
[314257785,1708119171748,-2287.27,0.00053424,60]
[314257786,1708119171758,-542.74,0.00053424,60]
[314257787,1708119171772,-500.0,0.00053424,60]
[314257788,1708119171781,-1517.81,0.00053424,60]
[314257789,1708119171790,-500.0,0.00053424,60]
[314257790,1708119171800,-520.3,0.00053424,60]
[314257791,1708119171809,-7477.21,0.00053424,60]
[314257792,1708119171818,-500.0,0.00053424,60]
[314257793,1708119171827,-714.64,0.00053424,60]
[314257794,1708119171837,-630.12,0.00053424,60]
[314257795,1708119171846,-500.0,0.00053424,60]
[314257796,1708119171855,-722.94,0.00053424,60]
[314257797,1708119171864,-3306.89,0.00053424,60]
[314257798,1708119171874,-910.24,0.00053424,60]
[314257799,1708119171882,-544.82,0.00053424,60]
[314257800,1708119171892,-5810.7,0.00053424,60]
[314257801,1708119171901,-2333.25,0.00053424,60]
[314257802,1708119171911,-1821.43,0.00053424,60]
[314257803,1708119171920,-500.0,0.00053424,60]
[314257804,1708119171933,-500.0,0.00053424,60]
[314257805,1708119171942,-1107.39,0.00053424,60]
[314257806,1708119171952,-3684.25,0.00053424,60]
[314257807,1708119171966,-583.02,0.00053424,60]
[314257808,1708119171976,-500.0,0.00053424,60]
[314257809,1708119171986,-673.09,0.00053424,60]
[314257810,1708119171995,-500.0,0.00053424,60]
[314257811,1708119172006,-500.0,0.00053424,60]
[314257812,1708119172015,-530.67,0.00053424,60]
[314257813,1708119172025,-500.0,0.00053424,60]
[314257814,1708119172035,-868.96,0.00053424,60]
[314257815,1708119172044,-500.0,0.00053424,60]
[314257816,1708119172054,-688.48,0.00053424,60]
[314257817,1708119172063,-500.0,0.00053424,60]
[314257818,1708119172073,-2624.63,0.00053424,60]
[314257819,1708119172082,-842.25,0.00053424,60]
[314257820,1708119172091,-905.88,0.00053424,60]
[314257821,1708119172101,-1344.54,0.00053424,60]
[314257822,1708119172110,-500.0,0.00053424,60]
[314257823,1708119172119,-842.36,0.00053424,2]
[314257824,1708119172129,-554.45796846,0.00053424,120]
[314257825,1708119172139,-2942.14,0.00053424,60]
[314257826,1708119172148,-505.82,0.00053424,60]
[314257827,1708119172157,-2570.64,0.00053424,60]
[314257828,1708119172167,-2688.02,0.00053424,60]
[314257829,1708119172176,-2260.09,0.00053424,60]
[314257830,1708119172186,-500.0,0.00053424,60]
[314257831,1708119172195,-716.26,0.00053424,60]
[314257832,1708119172204,-924.33,0.00053424,60]
[314257833,1708119172214,-657.39,0.00053424,60]
[314257834,1708119172223,-2023.51,0.00053424,60]
[314257835,1708119172233,-1625.46,0.00053424,60]
[314257836,1708119172242,-506.3,0.00053424,60]
[314257837,1708119172251,-500.0,0.00053424,60]
[314257838,1708119172260,-953.19,0.00053424,60]
[314257839,1708119172271,-500.0,0.00053424,60]
[314257840,1708119172280,-680.83,0.00053424,60]
[314257841,1708119172289,-1719.81,0.00053424,60]
[314257842,1708119172298,-586.01,0.00053424,60]
[314257843,1708119172307,-562.1,0.00053424,60]
[314257844,1708119172316,-659.84,0.00053424,60]
[314257845,1708119172325,-4202.04,0.00053424,60]
[314257846,1708119172335,-582.82,0.00053424,60]
[314257847,1708119172344,-7068.33,0.00053424,60]
[314257848,1708119172354,-500.0,0.00053424,60]
[314257849,1708119172363,-500.0,0.00053424,60]
[314257850,1708119172372,-2643.96,0.00053424,60]
[314257851,1708119172382,-1183.13,0.00053424,60]
[314257852,1708119172391,-1949.14,0.00053424,60]
[314257853,1708119172400,-566.21,0.00053424,60]
[314257854,1708119172409,-500.0,0.00053424,60]
[314257855,1708119172419,-1927.89,0.00053424,60]
[314257856,1708119172428,-699.96,0.00053424,60]
[314257857,1708119172437,-500.0,0.00053424,60]
[314257858,1708119172447,-3348.01,0.00053424,60]
[314257859,1708119172457,-1200.81,0.00053424,60]
[314257860,1708119172466,-1872.95,0.00053424,60]
[314257861,1708119172476,-529.58,0.00053424,60]
[314257862,1708119172485,-716.71,0.00053424,60]
[314257863,1708119172495,-693.17,0.00053424,60]
[314257864,1708119172504,-500.0,0.00053424,60]
[314257865,1708119172514,-1099.89,0.00053424,60]
[314257866,1708119172523,-552.07,0.00053424,60]
[314257867,1708119172532,-500.0,0.00053424,60]
[314257868,1708119172541,-1791.39,0.00053424,60]
[314257869,1708119172551,-573.51,0.00053424,60]
[314257870,1708119172560,-1055.53,0.00053424,60]
[314257871,1708119172569,-500.0,0.00053424,60]
[314257872,1708119172579,-722.67,0.00053424,60]
[314257873,1708119172588,-777.88,0.00053424,60]
[314257874,1708119172598,-1887.23,0.00053424,60]
[314257875,1708119172607,-500.0,0.00053424,60]
[314257876,1708119172617,-674.89,0.00053424,60]
[314257877,1708119172626,-2198.11,0.00053424,60]
[314257878,1708119172635,-8115.72,0.00053424,60]
[314257879,1708119172645,-701.75,0.00053424,60]
[314257880,1708119172654,-779.02,0.00053424,60]
[314257881,1708119172663,-1002.39,0.00053424,60]
[314257882,1708119172672,-543.38362682,0.00053424,60]
[314257883,1708119172681,-1272.04,0.00053424,60]
[314257884,1708119172691,-1115.22,0.00053424,60]
[314257885,1708119172700,-505.42,0.00053424,60]
[314257886,1708119172709,-3301.31,0.00053424,60]
[314257887,1708119172719,-626.52,0.00053424,60]
[314257888,1708119172728,-500.0,0.00053424,60]
[314257889,1708119172738,-500.0,0.00053424,60]
[314257890,1708119172747,-1972.92,0.00053424,60]
[314257891,1708119172758,-500.0,0.00053424,60]
[314257892,1708119172769,-991.91,0.00053424,60]
[314257893,1708119172778,-914.46,0.00053424,60]
[314257894,1708119172787,-500.0,0.00053424,60]
[314257895,1708119172797,-536.93,0.00053424,60]
[314257896,1708119172806,-500.0,0.00053424,60]
[314257897,1708119172816,-480.48392128,0.00053424,60]
[314257898,1708119172825,-422.54,0.00053425,30]
[314257899,1708119172834,-422.54,0.00053425,30]
[314257900,1708119172844,-205.39,0.00053425,30]
[314257901,1708119172853,-446.86408125,0.0005344,30]
[314257902,1708119172862,-182.46208837,0.0005344,30]
[314257903,1708119172872,-288.21600538,0.0005344,30]
[314257904,1708119172881,-332.83372129,0.0005344,30]
[314257905,1708119172890,-325.64438562,0.0005344,30]
[314257906,1708119172899,-311.0,0.00053451,120]
[314257907,1708119172908,-254.52395784,0.00053459,13]
[314257908,1708119172917,-172.94189201,0.00053459,13]
[314257909,1708119172930,-64535.0,0.000535,30]
[314257910,1708119172939,-50000.0,0.000535,120]
[314257911,1708119172949,-152.0,0.00053524,7]
[314257912,1708119172960,-480.04,0.00053588,2]
[314257913,1708119172969,-174.0,0.00053596,28]
[314257914,1708119172978,-500.0,0.00053698,60]
[314257915,1708119172987,-500.0,0.00053698,60]
[314257916,1708119172996,-500.0,0.00053698,60]
[314257917,1708119173007,-500.0,0.00053698,60]
[314257918,1708119173019,-500.0,0.00053698,60]
[314257919,1708119173028,-500.0,0.00053698,60]
[314257920,1708119173037,-500.0,0.00053698,60]
[314257921,1708119173046,-273.03,0.00053698,60]
[314257922,1708119173055,-385.19931025,0.00053698,60]
[314257923,1708119173064,-500.0,0.00053698,60]
[314257924,1708119173073,-1000.0,0.00053698,120]
[314257925,1708119173082,-664.54,0.00053698,30]
[314257926,1708119173092,-500.0,0.00053698,60]
[314257927,1708119173101,-568.05,0.00053698,2]
[314257928,1708119173110,-296.96,0.00053698,60]
[314257929,1708119173120,-500.0,0.00053698,60]
[314257930,1708119173129,-199.0,0.00053698,60]
[314257931,1708119173138,-500.0,0.00053698,60]
[314257932,1708119173147,-584.13,0.00053698,60]
[314257933,1708119173157,-301.52950637,0.00053698,60]
[314257934,1708119173166,-631.37,0.00053698,60]
[314257935,1708119173175,-585.98,0.00053698,60]
[314257936,1708119173185,-500.0,0.00053698,60]
[314257937,1708119173194,-500.0,0.00053698,60]
[314257938,1708119173204,-549.14,0.00053698,60]
[314257939,1708119173213,-500.0,0.00053698,60]
[314257940,1708119173222,-500.0,0.00053698,60]
[314257941,1708119173232,-953.91,0.00053698,60]
[314257942,1708119173241,-713.03,0.00053698,60]
[314257943,1708119173250,-639.89,0.00053698,60]
[314257944,1708119173260,-500.0,0.00053698,60]
[314257945,1708119173271,-510.16,0.00053698,60]
[314257946,1708119173280,-588.26,0.00053698,60]
[314257947,1708119173289,-580.88,0.00053698,60]
[314257948,1708119173299,-500.0,0.00053698,60]
[314257949,1708119173308,-555.94,0.00053698,60]
[314257950,1708119173317,-572.13,0.00053698,60]
[314257951,1708119173326,-570.46,0.00053698,60]
[314257952,1708119173335,-551.75,0.00053698,60]
[314257953,1708119173344,-500.0,0.00053698,60]
[314257954,1708119173353,-500.0,0.00053698,60]
[314257955,1708119173362,-500.0,0.00053698,60]
[314257956,1708119173372,-616.49,0.00053698,60]
[314257957,1708119173382,-500.0,0.00053698,60]
[314257958,1708119173392,-569.39,0.00053698,60]
[314257959,1708119173401,-500.0,0.00053698,60]
[314257960,1708119173410,-614.71,0.00053698,60]
[314257961,1708119173420,-500.0,0.00053698,60]
[314257962,1708119173430,-498.8325322,0.00053698,60]
[314257963,1708119173439,-500.0,0.00053698,60]
[314257964,1708119173448,-2236.49,0.00053698,60]
[314257965,1708119173458,-869.27,0.00053698,60]
[314257966,1708119173467,-679.72,0.00053698,60]
[314257967,1708119173476,-514.97,0.00053698,60]
[314257968,1708119173485,-745.29,0.00053698,60]
[314257969,1708119173495,-597.04,0.00053698,60]
[314257970,1708119173504,-541.75,0.00053698,60]
[314257971,1708119173514,-647.43,0.00053698,60]
[314257972,1708119173524,-500.0,0.00053698,60]
[314257973,1708119173533,-500.0,0.00053698,60]
[314257974,1708119173542,-500.0,0.00053698,60]
[314257975,1708119173552,-1088.61,0.00053698,2]
[314257976,1708119173561,-159.91,0.00053698,60]
[314257977,1708119173570,-500.0,0.00053698,60]
[314257978,1708119173580,-500.0,0.00053698,60]
[314257979,1708119173590,-500.0,0.00053698,60]
[314257980,1708119173600,-568.01,0.00053698,60]
[314257981,1708119173609,-581.86,0.00053698,60]
[314257982,1708119173619,-500.0,0.00053698,60]
[314257983,1708119173629,-792.04,0.00053698,60]
[314257984,1708119173639,-505.59,0.00053698,60]
[314257985,1708119173648,-500.0,0.00053698,60]
[314257986,1708119173657,-500.0,0.00053698,60]
[314257987,1708119173667,-500.0,0.00053698,60]
[314257988,1708119173676,-574.86,0.00053698,60]
[314257989,1708119173686,-724.01,0.00053698,60]
[314257990,1708119173695,-500.0,0.00053698,60]
[314257991,1708119173705,-607.1,0.00053698,60]
[314257992,1708119173714,-500.0,0.00053698,60]
[314257993,1708119173723,-574.15,0.00053698,60]
[314257994,1708119173734,-1173.51,0.00053698,7]
[314257995,1708119173743,-617.63,0.00053698,60]
[314257996,1708119173753,-604.06,0.00053698,60]
[314257997,1708119173762,-500.0,0.00053698,60]
[314257998,1708119173772,-500.0,0.00053698,60]
[314257999,1708119173781,-511.02,0.00053698,60]
[314258000,1708119173791,-840.32,0.00053698,2]
[314258001,1708119173801,-551.0,0.00053698,60]
[314258002,1708119173811,-2031.12,0.00053698,2]
[314258003,1708119174019,-500.0,0.00053698,60]
[314258004,1708119174030,-608.56,0.00053698,60]
[314258005,1708119174039,-542.29,0.00053698,60]
[314258006,1708119174049,-500.0,0.00053698,60]
[314258007,1708119174059,-500.0,0.00053698,60]
[314258008,1708119174069,-500.0,0.00053698,60]
[314258009,1708119174079,-662.34,0.00053698,60]
[314258010,1708119174089,-500.0,0.00053698,60]
[314258011,1708119174098,-725.97,0.00053698,60]
[314258012,1708119174108,-351.07,0.00053698,60]
[314258013,1708119174117,-862.39,0.00053698,60]
[314258014,1708119174126,-348.88,0.00053698,60]
[314258015,1708119174136,-584.00892851,0.00053698,60]
[314258016,1708119174145,-500.0,0.00053698,60]
[314258017,1708119174154,-693.28,0.00053698,60]
[314258018,1708119174164,-703.48,0.00053698,60]
[314258019,1708119174173,-566.58,0.00053698,60]
[314258020,1708119174183,-500.0,0.00053698,60]
[314258021,1708119174193,-1032.17,0.00053698,60]
[314258022,1708119174202,-536.17,0.00053698,60]
[314258023,1708119174211,-986.8,0.00053698,60]
[314258024,1708119174221,-539.44,0.00053698,60]
[314258025,1708119174230,-782.04,0.00053698,60]
[314258026,1708119174240,-500.94,0.00053698,60]
[314258027,1708119174250,-443.22,0.00053698,60]
[314258028,1708119174260,-708.38,0.00053698,60]
[314258029,1708119174270,-515.61,0.00053698,60]
[314258030,1708119174280,-578.51,0.00053698,60]
[314258031,1708119174290,-500.0,0.00053698,60]
[314258032,1708119174299,-940.09,0.00053698,60]
[314258033,1708119174309,-500.0,0.00053698,60]
[314258034,1708119174318,-816.62,0.00053698,60]
[314258035,1708119174327,-642.11,0.00053698,60]
[314258036,1708119174337,-500.0,0.00053698,60]
[314258037,1708119174347,-1167.88,0.00053698,60]
[314258038,1708119174356,-500.0,0.00053698,60]
[314258039,1708119174366,-851.65,0.00053698,60]
[314258040,1708119174375,-500.0,0.00053698,60]
[314258041,1708119174384,-2216.52,0.00053698,60]
[314258042,1708119174394,-500.0,0.00053698,60]
[314258043,1708119174403,-500.0,0.00053698,60]
[314258044,1708119174413,-500.0,0.00053698,60]
[314258045,1708119174422,-500.0,0.00053698,60]
[314258046,1708119174431,-694.71,0.00053698,60]
[314258047,1708119174440,-2871.6,0.00053698,60]
[314258048,1708119174450,-500.0,0.00053698,60]
[314258049,1708119174460,-562.06,0.00053698,60]
[314258050,1708119174470,-589.85,0.00053698,60]
[314258051,1708119174480,-1083.11,0.00053698,60]
[314258052,1708119174489,-2574.8,0.00053698,60]
[314258053,1708119174499,-500.0,0.00053698,60]
[314258054,1708119174508,-890.17,0.00053698,60]
[314258055,1708119174518,-1244.45,0.00053698,60]
[314258056,1708119174527,-500.0,0.00053698,60]
[314258057,1708119174536,-588.9,0.00053698,60]
[314258058,1708119174545,-1983.03,0.00053698,60]
[314258059,1708119174554,-500.0,0.00053698,60]
[314258060,1708119174563,-1068.84,0.00053698,60]
[314258061,1708119174573,-742.37,0.00053698,60]
[314258062,1708119174585,-803.55,0.00053698,60]
[314258063,1708119174595,-4400.67,0.00053698,60]
[314258064,1708119174605,-821.93,0.00053698,60]
[314258065,1708119174615,-538.03,0.00053698,60]
[314258066,1708119174624,-575.12,0.00053698,60]
[314258067,1708119174634,-500.0,0.00053698,60]
[314258068,1708119174643,-3625.09,0.00053698,60]
[314258069,1708119174652,-500.0,0.00053698,60]
[314258070,1708119174661,-964.44,0.00053698,60]
[314258071,1708119174671,-2046.77,0.00053698,60]
[314258072,1708119174681,-1492.92,0.00053698,60]
[314258073,1708119174691,-802.5,0.00053698,60]
[314258074,1708119174700,-610.16,0.00053698,60]
[314258075,1708119174709,-1066.34,0.00053698,60]
[314258076,1708119174719,-500.0,0.00053698,60]
[314258077,1708119174728,-797.01,0.00053698,60]
[314258078,1708119174737,-3199.37,0.00053698,60]
[314258079,1708119174747,-729.2,0.00053698,60]
[314258080,1708119174756,-500.0,0.00053698,60]
[314258081,1708119174765,-24352.15,0.00053698,60]
[314258082,1708119174775,-1397.78,0.00053698,60]
[314258083,1708119174785,-2225.09,0.00053698,60]
[314258084,1708119174794,-500.0,0.00053698,60]
[314258085,1708119174803,-663.32,0.00053698,60]
[314258086,1708119174812,-559.03,0.00053698,60]
[314258087,1708119174821,-3059.93,0.00053698,60]
[314258088,1708119174830,-3189.76,0.00053698,60]
[314258089,1708119174840,-2572.92,0.00053698,60]
[314258090,1708119174849,-1075.21,0.00053698,60]
[314258091,1708119174858,-500.0,0.00053698,60]
[314258092,1708119174868,-500.0,0.00053698,60]
[314258093,1708119174877,-500.0,0.00053698,60]
[314258094,1708119174886,-4525.95,0.00053698,60]
[314258095,1708119174896,-648.82,0.00053698,60]
[314258096,1708119174905,-5354.43,0.00053698,60]
[314258097,1708119174914,-703.45,0.00053698,60]
[314258098,1708119174925,-871.55,0.00053698,60]
[314258099,1708119174936,-1211.83,0.00053698,60]
[314258100,1708119174945,-609.42,0.00053698,60]
[314258101,1708119174954,-1231.04,0.00053698,60]
[314258102,1708119174963,-737.52,0.00053698,60]
[314258103,1708119174974,-591.52,0.00053698,60]
[314258104,1708119174983,-719.76,0.00053698,60]
[314258105,1708119174992,-2765.99,0.00053698,60]
[314258106,1708119175002,-500.0,0.00053698,60]
[314258107,1708119175012,-500.0,0.00053698,60]
[314258108,1708119175022,-1575.91,0.00053698,60]
[314258109,1708119175031,-500.0,0.00053698,60]
[314258110,1708119175040,-868.38,0.00053698,60]
[314258111,1708119175050,-2411.87,0.00053698,60]
[314258112,1708119175059,-9546.8,0.00053698,60]
[314258113,1708119175069,-606.97,0.00053698,60]
[314258114,1708119175079,-500.0,0.00053698,60]
[314258115,1708119175088,-570.56,0.00053698,60]
[314258116,1708119175098,-476.74,0.00053698,60]
[314258117,1708119175108,-1028.79,0.00053698,60]
[314258118,1708119175117,-500.0,0.00053698,60]
[314258119,1708119175127,-1081.67,0.00053698,60]
[314258120,1708119175137,-500.0,0.00053698,60]
[314258121,1708119175146,-500.0,0.00053698,60]
[314258122,1708119175155,-8340.13,0.00053698,60]
[314258123,1708119175165,-6395.6,0.00053698,14]
[314258124,1708119175175,-338.38,0.00053698,60]
[314258125,1708119175184,-2287.27,0.00053698,60]
[314258126,1708119175194,-542.74,0.00053698,60]
[314258127,1708119175203,-500.0,0.00053698,60]
[314258128,1708119175212,-1517.81,0.00053698,60]
[314258129,1708119175221,-500.0,0.00053698,60]
[314258130,1708119175230,-520.3,0.00053698,60]
[314258131,1708119175240,-7477.21,0.00053698,60]
[314258132,1708119175249,-500.0,0.00053698,60]
[314258133,1708119175259,-714.64,0.00053698,60]
[314258134,1708119175268,-630.12,0.00053698,60]
[314258135,1708119175278,-173.14,0.00053698,60]
[314258136,1708119175287,-722.94,0.00053698,60]
[314258137,1708119175295,-3306.89,0.00053698,60]
[314258138,1708119175304,-910.24,0.00053698,60]
[314258139,1708119175314,-544.82,0.00053698,60]
[314258140,1708119175322,-5810.7,0.00053698,60]
[314258141,1708119175332,-2333.25,0.00053698,60]
[314258142,1708119175341,-1821.43,0.00053698,60]
[314258143,1708119175350,-500.0,0.00053698,60]
[314258144,1708119175359,-500.0,0.00053698,60]
[314258145,1708119175368,-1107.39,0.00053698,60]
[314258146,1708119175378,-3684.25,0.00053698,60]
[314258147,1708119175386,-583.02,0.00053698,60]
[314258148,1708119175396,-673.09,0.00053698,60]
[314258149,1708119175406,-500.0,0.00053698,60]
[314258150,1708119175415,-500.0,0.00053698,60]
[314258151,1708119175425,-530.67,0.00053698,60]
[314258152,1708119175434,-500.0,0.00053698,60]
[314258153,1708119175444,-868.96,0.00053698,60]
[314258154,1708119175453,-500.0,0.00053698,60]
[314258155,1708119175469,-688.48,0.00053698,60]
[314258156,1708119175492,-500.0,0.00053698,60]
[314258157,1708119175509,-2624.63,0.00053698,60]
[314258158,1708119175529,-842.25,0.00053698,60]
[314258159,1708119175545,-905.88,0.00053698,60]
[314258160,1708119175564,-1344.54,0.00053698,60]
[314258161,1708119175583,-500.0,0.00053698,60]
[314258162,1708119175599,-842.36,0.00053698,2]
[314258163,1708119175618,-2942.14,0.00053698,60]
[314258164,1708119175635,-505.82,0.00053698,60]
[314258165,1708119175656,-2570.64,0.00053698,60]
[314258166,1708119175676,-2688.02,0.00053698,60]
[314258167,1708119175689,-2260.09,0.00053698,60]
[314258168,1708119175705,-500.0,0.00053698,60]
[314258169,1708119175721,-716.26,0.00053698,60]
[314258170,1708119175740,-924.33,0.00053698,60]
[314258171,1708119175754,-657.39,0.00053698,60]
[314258172,1708119175770,-2023.51,0.00053698,60]
[314258173,1708119175785,-1625.46,0.00053698,60]
[314258174,1708119175800,-506.3,0.00053698,60]
[314258175,1708119175815,-500.0,0.00053698,60]
[314258176,1708119175831,-953.19,0.00053698,60]
[314258177,1708119175845,-680.83,0.00053698,60]
[314258178,1708119175859,-1719.81,0.00053698,60]
[314258179,1708119175875,-586.01,0.00053698,60]
[314258180,1708119175889,-562.1,0.00053698,60]
[314258181,1708119175904,-659.84,0.00053698,60]
[314258182,1708119175919,-4202.04,0.00053698,60]
[314258183,1708119175937,-582.82,0.00053698,60]
[314258184,1708119175952,-7068.33,0.00053698,60]
[314258185,1708119175967,-500.0,0.00053698,60]
[314258186,1708119175984,-500.0,0.00053698,60]
[314258187,1708119176000,-2643.96,0.00053698,60]
[314258188,1708119176016,-1183.13,0.00053698,60]
[314258189,1708119176031,-1949.14,0.00053698,60]
[314258190,1708119176046,-566.21,0.00053698,60]
[314258191,1708119176061,-500.0,0.00053698,60]
[314258192,1708119176077,-1927.89,0.00053698,60]
[314258193,1708119176092,-699.96,0.00053698,60]
[314258194,1708119176108,-500.0,0.00053698,60]
[314258195,1708119176125,-3348.01,0.00053698,60]
[314258196,1708119176141,-1200.81,0.00053698,60]
[314258197,1708119176156,-1872.95,0.00053698,60]
[314258198,1708119176171,-529.58,0.00053698,60]
[314258199,1708119176185,-716.71,0.00053698,60]
[314258200,1708119176199,-693.17,0.00053698,60]
[314258201,1708119176215,-1099.89,0.00053698,60]
[314258202,1708119176230,-552.07,0.00053698,60]
[314258203,1708119176245,-500.0,0.00053698,60]